bitfinex/quotes_ETHUSD_20240910
["timestamp","ask_amount","ask_price","bid_price","bid_amount"]
[1725966408203,3.24497799,2354.3,2354.1,0.55]
[1725966408538,3.24497799,2354.3,2353.9,0.55]
[1725966408741,3.24497799,2354.3,2353.9,1.83547]
[1725966413856,3.24497799,2354.3,2353.9,0.55]
[1725966414206,1.49949749,2354.1,2353.9,0.55]
[1725966420880,1.49949749,2354.1,2353.7,0.55]
[1725966422264,1.49949749,2354.1,2353.7,2.01896208]
[1725966423365,3.89059749,2354.1,2353.7,2.01896208]
[1725966423567,3.89059749,2354.1,2353.7,0.55]
[1725966424384,1.49949749,2354.1,2353.7,0.55]
[1725966429614,2.3906,2354.0,2353.7,0.55]
[1725966429815,2.3906,2354.0,2353.5,3.55]
[1725966430013,1.49949749,2354.1,2353.5,3.55]
[1725966430253,1.49949749,2354.1,2353.6,2.4523]
[1725966430412,1.49949749,2354.1,2353.7,0.55]
[1725966439029,1.49949749,2354.1,2353.7,2.04127559]
[1725966439270,1.49949749,2354.1,2353.8,0.9943028]
[1725966439485,1.49949749,2354.1,2353.9,0.55]
[1725966439670,1.49949749,2354.1,2353.7,0.55]
[1725966440574,1.49949749,2354.1,2353.7,2.04180018]
[1725966440775,1.49949749,2354.1,2353.7,0.55]
[1725966442641,3.84189749,2354.1,2353.7,0.55]
[1725966444037,1.49949749,2353.9,2353.7,0.55]
[1725966447480,1.49949749,2354.1,2353.7,0.93889105]
[1725966447684,1.49949749,2354.1,2353.7,0.55]
[1725966450084,1.49949749,2353.9,2353.7,0.55]
[1725966452270,1.49949749,2353.9,2353.7,1.08775378]
[1725966457513,1.49949749,2353.9,2353.7,0.55]
[1725966458203,3.12223793,2354.8,2353.7,0.55]
[1725966458204,4.50986995,2354.5,2353.8,3.35171089]
[1725966458409,1.49949749,2354.4,2353.9,4.91879415]
[1725966458592,1.49949749,2354.4,2354.0,1.48934445]
[1725966458900,1.49949749,2354.4,2353.9,0.94866795]
[1725966458901,1.49949749,2354.4,2354.1,3.97278525]
[1725966459096,1.49949749,2354.4,2354.2,0.55]
[1725966460619,1.49949749,2354.4,2354.1,0.55]
[1725966460823,1.49949749,2354.2,2354.0,0.55]
[1725966461609,2.2797,2354.5,2354.0,0.55]
[1725966461902,2.67620394,2354.9,2354.0,0.55]
[1725966461903,4.53456995,2354.9,2354.2,2.3039]
[1725966462106,1.49949749,2354.8,2354.3,4.86193729]
[1725966462317,1.49949749,2354.8,2354.4,2.05628782]
[1725966462521,1.49949749,2354.8,2354.5,0.55]
[1725966463126,1.49949749,2354.8,2354.4,0.55]
[1725966463285,1.49949749,2354.8,2354.4,0.94575139]
[1725966463690,2.3044,2354.9,2354.4,0.94575139]
[1725966463691,1.49949749,2354.6,2354.4,0.94575139]
[1725966463930,1.49949749,2354.6,2354.4,0.55]
[1725966464129,1.49949749,2354.6,2354.3,0.55]
[1725966474246,2.3044,2354.9,2354.3,0.55]
[1725966474400,1.49949749,2354.7,2354.3,0.55]
[1725966474600,1.49949749,2354.7,2354.3,1.03539]
[1725966478455,1.49949749,2354.7,2354.3,0.55]
[1725966482051,1.49949749,2354.5,2354.2,2.3039]
[1725966482207,1.49949749,2354.5,2354.0,0.38807661]
[1725966482208,1.49949749,2354.3,2353.8,13.95969668]
[1725966482411,1.49949749,2354.1,2353.8,5.4163]
[1725966482709,1.49949749,2354.3,2353.8,5.50125883]
[1725966483243,1.49949749,2354.3,2353.8,5.4163]
[1725966483632,1.49949749,2354.3,2353.8,5.50125879]
[1725966484244,1.49949749,2354.3,2353.8,5.4163]
[1725966484832,1.49949749,2354.3,2353.9,0.55]
[1725966485267,3.81259749,2354.1,2353.9,0.55]
[1725966485462,1.49949749,2354.1,2353.6,19.53]
[1725966485684,1.49949749,2354.1,2353.7,0.55]
[1725966485968,1.49949749,2354.1,2353.7,0.63496378]
[1725966487238,1.49949749,2354.1,2353.7,0.55]
[1725966488672,2.3501,2354.6,2353.8,2.49336368]
[1725966488977,1.49949749,2354.3,2353.9,0.55]
[1725966490266,1.49949749,2354.5,2354.0,2.4986]
[1725966490571,1.49949749,2354.5,2354.1,0.63495036]
[1725966490873,1.49949749,2354.5,2354.1,0.86335504]
[1725966493360,1.49949749,2354.5,2354.1,0.55]
[1725966494778,1.49949749,2354.3,2354.1,0.55]
[1725966494964,3.79789749,2354.3,2354.1,0.55]
[1725966495166,3.79789749,2354.3,2353.9,0.55]
[1725966495375,1.49949749,2354.1,2353.8,0.55]
[1725966497904,3.79789749,2354.3,2353.8,0.55]
[1725966498178,3.79789749,2354.3,2353.9,1.21603023]
[1725966498498,1.78269354,2354.8,2354.0,3.08985857]
[1725966498646,4.06459354,2355.0,2354.1,2.74308888]
[1725966498848,3.78139749,2355.0,2354.3,2.3125]
[1725966499040,1.49949749,2354.8,2354.4,0.78125]
[1725966499361,4.12869354,2355.2,2354.5,2.3964]
[1725966499556,1.49949749,2355.0,2354.6,0.55]
[1725966499756,1.49949749,2354.8,2354.6,0.55]
[1725966502053,1.49949749,2354.8,2354.4,0.55]
[1725966502263,1.49949749,2354.6,2354.3,3.55]
[1725966502444,1.49949749,2354.8,2354.3,4.48650323]
[1725966503388,1.49949749,2354.8,2354.4,2.3231]
[1725966503545,1.49949749,2354.8,2354.5,0.55]
[1725966507263,1.49949749,2354.8,2354.5,1.23945464]
[1725966509205,1.49949749,2354.8,2354.5,1.32439352]
[1725966509471,1.49949749,2354.8,2354.6,2.2783]
[1725966509666,1.49949749,2355.0,2354.7,0.55]
[1725966509981,1.49949749,2355.0,2354.8,2.2783]
[1725966510300,1.49949749,2355.0,2354.9,0.55]
[1725966510765,1.49949749,2355.0,2354.7,0.55]
[1725966515239,2.3071,2355.3,2354.7,0.55]
[1725966515527,1.49949749,2355.0,2354.7,0.55]
[1725966515844,1.49949749,2355.0,2354.8,0.29132281]
[1725966515997,1.49949749,2355.0,2354.9,0.55]
[1725966516604,1.49949749,2355.0,2354.7,0.55]
[1725966521110,1.49949749,2354.8,2354.3,10.48]
[1725966521438,1.49949749,2354.8,2354.4,1.248]
[1725966521804,2.423,2355.0,2354.5,2.3012]
[1725966522036,2.22550057,2355.4,2354.5,2.38613871]
[1725966522037,2.3482,2355.2,2354.5,2.38613871]
[1725966522206,1.49949749,2355.1,2354.6,0.35492]
[1725966522610,1.49949749,2355.1,2354.7,0.63492793]
[1725966524108,1.49949749,2354.9,2354.7,0.55]
[1725966524304,3.83249749,2354.9,2354.6,0.55]
[1725966524504,1.49949749,2354.7,2354.4,0.55]
[1725966526106,1.49949749,2354.7,2354.4,1.39162413]
[1725966526306,1.49949749,2354.7,2354.4,1.47656233]
[1725966526502,1.49949749,2354.9,2354.4,1.47656233]
[1725966526838,1.49949749,2354.9,2354.4,0.6349382]
[1725966527039,1.49949749,2354.9,2354.5,2.3833]
[1725966527244,1.49949749,2354.9,2354.6,0.55]
[1725966527855,2.3451,2354.8,2354.6,0.55]
[1725966528151,1.49949749,2354.7,2354.4,0.55]
[1725966537737,1.49949749,2354.5,2354.4,0.55]
[1725966537939,3.93349749,2354.5,2353.9,11.29327705]
[1725966538143,1.49949749,2354.3,2354.0,1.05831368]
[1725966538474,1.49949749,2354.3,2354.0,0.66469571]
[1725966538844,1.49949749,2354.3,2353.9,2.334]
[1725966539172,1.49949749,2354.3,2354.0,0.55]
[1725966539533,1.49949749,2354.3,2353.9,0.55]
[1725966540440,1.49949749,2354.1,2353.9,0.55]
[1725966540830,1.49949749,2354.1,2353.6,0.88661051]
[1725966541046,0.2434,2354.4,2353.5,6.67711576]
[1725966541047,1.49949749,2353.8,2353.5,2.3472]
[1725966541245,1.49949749,2353.8,2353.3,4.64429979]
[1725966541457,1.49949749,2353.8,2353.4,1.45124732]
[1725966541742,2.3758,2353.9,2353.3,2.36683652]
[1725966541743,1.49949749,2353.6,2353.3,2.36683652]
[1725966542052,1.49949749,2353.6,2353.2,1.48022601]
[1725966542053,1.49949749,2353.4,2353.2,1.48022601]
[1725966542252,1.49949749,2353.4,2353.1,0.95760389]
[1725966542468,1.49949749,2353.4,2353.2,0.9864428]
[1725966542676,2.2846,2354.2,2353.4,2.3772]
[1725966542876,1.49949749,2353.9,2353.4,2.3772]
[1725966543326,1.49949749,2353.9,2353.5,0.55]
[1725966546251,3.24940677,2354.0,2353.5,0.55]
[1725966547222,3.24940677,2353.8,2353.5,0.55]
[1725966547655,3.24940677,2353.8,2353.4,0.55]
[1725966548057,2.3153,2353.9,2353.4,0.55]
[1725966550435,3.24940677,2353.8,2353.4,0.55]
[1725966550636,3.24940677,2353.8,2353.3,0.55]
[1725966551889,3.24940677,2353.8,2353.2,3.30121]
[1725966553184,3.24940677,2353.8,2353.3,0.55]
[1725966555192,5.61120677,2353.6,2353.3,0.55]
[1725966555364,5.61120677,2353.6,2353.1,0.55]
[1725966555550,5.61120677,2353.6,2353.1,1.57821]
[1725966557751,5.61120677,2353.6,2353.1,0.55]
[1725966557952,5.61120677,2353.6,2353.0,0.55]
[1725966558522,5.61120677,2353.6,2353.1,2.3107]
[1725966558730,5.61120677,2353.6,2353.2,0.55]
[1725966559197,5.61120677,2353.6,2353.0,0.55]
[1725966561296,3.24940677,2353.2,2353.0,0.55]
[1725966561824,3.24940677,2353.4,2353.0,0.55]
[1725966562025,3.81052745,2353.4,2353.0,0.55]
[1725966563186,2.316,2353.3,2353.0,0.55]
[1725966563394,2.316,2353.3,2352.8,0.55]
[1725966566390,3.24940677,2353.2,2352.8,0.55]
[1725966568100,1.50079322,2353.1,2352.8,0.55]
[1725966571313,1.50079322,2353.1,2352.8,0.83535]
[1725966571818,2.316,2353.3,2352.8,0.83535]
[1725966572315,2.316,2353.3,2352.8,0.55]
[1725966573536,2.3939,2353.5,2352.8,0.55]
[1725966576854,2.3262,2353.7,2352.9,2.411]
[1725966577032,2.3262,2353.7,2353.0,2.961]
[1725966580444,1.50079322,2353.6,2353.0,2.961]
[1725966580651,1.88349254,2353.6,2353.0,2.961]
[1725966586463,0.38269932,2353.6,2353.0,2.961]
[1725966589130,5.57138676,2354.0,2353.2,2.2853]
[1725966589355,5.57138676,2354.0,2353.3,0.55]
[1725966589566,2.59258041,2353.9,2353.3,0.55]
[1725966589738,0.80988687,2353.9,2353.3,0.55]
[1725966589940,2.59258041,2353.9,2353.3,0.55]
[1725966590134,1.50079322,2353.8,2353.3,0.55]
[1725966593835,3.28348676,2353.8,2353.3,0.55]
[1725966594068,0.58760672,2353.7,2353.3,0.55]
[1725966596976,1.78269354,2353.8,2353.3,0.55]
[1725966597150,1.78269354,2353.8,2353.4,2.4418]
[1725966597352,1.78269354,2353.8,2353.5,0.55]
[1725966598342,2.59258041,2353.9,2353.5,0.55]
[1725966598681,0.68286467,2353.8,2353.5,0.55]
[1725966598876,2.46555821,2353.8,2353.5,0.55]
[1725966600277,2.23006659,2353.9,2353.5,0.55]
[1725966600278,1.78269354,2353.9,2353.5,0.55]
[1725966600483,1.78269354,2354.0,2353.6,2.4217]
[1725966600652,1.78269354,2354.2,2353.8,2.4217]
[1725966601288,1.78269354,2354.2,2353.9,0.55]
[1725966601581,0.40127601,2354.1,2353.9,0.55]
[1725966601873,0.40127601,2354.1,2353.4,9.69636264]
[1725966601874,2.18396955,2354.1,2353.4,7.48]
[1725966602082,2.18396955,2354.1,2353.5,0.55]
[1725966602233,2.18396955,2354.1,2353.6,2.3234]
[1725966602584,2.09227616,2354.0,2353.7,0.55]
[1725966602878,6.1964697,2354.0,2353.7,0.55]
[1725966603076,6.1964697,2354.0,2353.6,0.55]
[1725966603299,1.50079322,2353.8,2353.6,0.55]
[1725966603618,1.50079322,2353.8,2353.3,2.3234]
[1725966603759,1.50079322,2353.8,2353.4,0.55]
[1725966604802,1.50079322,2353.8,2353.5,0.00373221]
[1725966604956,2.14555726,2353.8,2353.5,0.00373221]
[1725966605160,0.64476404,2353.8,2353.5,0.00373221]
[1725966605387,5.60498676,2354.0,2353.5,0.00373221]
[1725966605588,3.28348676,2354.0,2353.6,2.3542]
[1725966605915,1.50079322,2354.0,2353.6,2.3542]
[1725966607349,1.78269354,2354.1,2353.6,2.3542]
[1725966607463,2.41187724,2354.1,2353.6,2.3542]
[1725966607871,0.6291837,2354.1,2353.6,2.3542]
[1725966608072,2.41187724,2354.1,2353.6,2.3542]
[1725966609397,1.78269354,2354.0,2353.6,2.3542]
[1725966610000,3.28348676,2354.0,2353.6,2.3542]
[1725966610164,0.61425139,2353.9,2353.6,2.3542]
[1725966612268,3.28348676,2354.0,2353.6,2.3542]
[1725966612801,1.50079322,2354.0,2353.6,2.3542]
[1725966613608,2.41187724,2354.1,2353.5,0.00373221]
[1725966613609,1.50079322,2353.8,2353.5,0.00373221]
[1725966613816,2.41187724,2354.1,2353.5,0.00373221]
[1725966613817,0.39356932,2353.7,2353.5,0.00373221]
[1725966614101,1.50079322,2354.0,2353.5,0.00373221]
[1725966615850,1.50079322,2353.8,2353.5,0.00373221]
[1725966617858,1.50079322,2354.0,2353.6,2.4265]
[1725966618766,3.28443275,2354.0,2353.6,2.4265]
[1725966619829,1.78363953,2353.9,2353.5,0.00373221]
[1725966622049,1.50079322,2353.8,2353.5,0.00373221]
[1725966623396,2.29689841,2353.8,2353.5,0.00373221]
[1725966624404,1.50079322,2353.8,2353.5,0.00373221]
[1725966625465,1.78363953,2353.9,2353.5,0.00373221]
[1725966625799,5.73103275,2354.0,2353.5,0.00373221]
[1725966626389,1.78363953,2353.9,2353.5,0.00373221]
[1725966627110,2.57974472,2353.9,2353.5,0.00373221]
[1725966629272,1.50079322,2353.8,2353.5,0.00373221]
[1725966629732,3.28443275,2353.8,2353.5,0.00373221]
[1725966630023,1.50079322,2353.8,2353.5,0.00373221]
[1725966630792,3.28443275,2353.8,2353.5,0.00373221]
[1725966631110,0.40805379,2353.7,2353.5,0.00373221]
[1725966635627,3.28443275,2353.8,2353.5,2.41653221]
[1725966635832,1.50079322,2353.8,2353.5,2.41653221]
[1725966636829,1.78363953,2353.9,2353.5,2.41653221]
[1725966637140,1.78363953,2354.3,2353.8,2.3926]
[1725966637304,1.78363953,2354.6,2354.0,2.3926]
[1725966637521,1.78363953,2354.8,2354.1,2.3926]
[1725966637851,3.28443275,2354.8,2354.1,2.9426]
[1725966638156,1.50079322,2354.8,2354.1,5.05239773]
[1725966638374,3.28443275,2354.8,2354.1,3.57661654]
[1725966638655,1.50079322,2354.8,2354.1,3.57661654]
[1725966638840,1.50079322,2354.8,2354.2,0.36615671]
[1725966639040,1.50079322,2354.8,2354.3,0.55]
[1725966640030,1.50079322,2354.8,2354.4,2.3922]
[1725966647176,4.15763953,2355.1,2354.4,2.3922]
[1725966647376,1.78363953,2355.2,2354.4,2.3922]
[1725966647609,1.50079322,2355.2,2354.6,2.3624]
[1725966649499,1.50079322,2355.0,2354.6,2.3624]
[1725966652030,1.50079322,2354.8,2354.5,0.00373221]
[1725966652391,1.50079322,2355.0,2354.5,0.00373221]
[1725966652694,1.50079322,2355.0,2354.6,2.4804]
[1725966652901,1.98059049,2355.0,2354.6,2.4804]
[1725966654401,1.50079322,2355.0,2354.6,2.4804]
[1725966654829,2.41747271,2355.2,2354.6,2.4804]
[1725966655036,1.50079322,2355.3,2354.6,2.4804]
[1725966655190,2.1142365,2355.3,2354.6,2.4804]
[1725966655392,2.1142365,2355.3,2354.8,2.2879]
[1725966659852,1.50079322,2355.3,2354.8,2.2879]
[1725966661015,1.50079322,2355.1,2354.8,2.2879]
[1725966661852,1.50079322,2354.9,2354.6,2.4614]
[1725966662059,1.50079322,2354.6,2354.5,0.00373221]
[1725966663111,1.87598254,2354.6,2354.5,0.00373221]
[1725966663342,1.50079322,2354.6,2354.5,0.00373221]
[1725966664137,3.24827052,2354.6,2354.5,0.00373221]
[1725966664533,6.24827052,2354.6,2354.5,0.00373221]
[1725966667256,8.72687052,2354.6,2354.5,0.00373221]
[1725966667607,9.59955757,2354.6,2354.5,0.00373221]
[1725966674154,7.12095757,2354.6,2354.5,0.00373221]
[1725966675168,9.41175757,2354.6,2354.5,0.00373221]
[1725966675573,11.1953971,2354.6,2354.5,0.00373221]
[1725966676075,7.12095757,2354.6,2354.5,0.00373221]
[1725966677459,8.9045971,2354.6,2354.5,0.00373221]
[1725966677960,7.12095757,2354.6,2354.5,0.00373221]
[1725966678897,8.9045971,2354.6,2354.5,0.00373221]
[1725966679336,7.12095757,2354.6,2354.5,0.00373221]
[1725966680788,8.9045971,2354.6,2354.5,0.00373221]
[1725966680990,7.12095757,2354.6,2354.5,0.00373221]
[1725966681360,8.9045971,2354.6,2354.5,0.00373221]
[1725966683400,7.12095757,2354.6,2354.5,0.00373221]
[1725966683902,8.9045971,2354.6,2354.5,0.00373221]
[1725966684111,7.15570638,2354.6,2354.5,0.00373221]
[1725966688507,5.37206685,2354.6,2354.5,0.00373221]
[1725966688697,7.15305738,2354.6,2354.5,0.00373221]
[1725966688897,5.37206685,2354.6,2354.5,0.00373221]
[1725966689215,7.15305807,2354.6,2354.5,0.00373221]
[1725966692268,6.28037102,2354.6,2354.5,0.00373221]
[1725966692671,3.0,2354.6,2354.5,2.47233221]
[1725966692918,2.22603902,2354.8,2354.5,2.47233221]
[1725966692919,1.78099122,2354.8,2354.5,2.47233221]
[1725966693087,1.78099122,2354.9,2354.5,2.47233221]
[1725966693416,1.78099122,2354.9,2354.5,2.71956543]
[1725966694220,4.78099122,2354.9,2354.5,2.71956543]
[1725966696288,4.78099122,2354.9,2354.5,2.47233221]
[1725966698539,3.0,2354.9,2354.5,2.47233221]
[1725966698911,6.28037102,2355.0,2354.5,2.47233221]
[1725966705418,1.78099122,2354.9,2354.5,2.47233221]
[1725966705658,3.0,2354.9,2354.5,2.47233221]
[1725966707429,3.28037102,2354.8,2354.5,2.47233221]
[1725966707673,1.4993798,2354.8,2354.5,2.47233221]
[1725966707823,3.28037102,2354.8,2354.5,2.47233221]
[1725966708637,1.4993798,2354.8,2354.5,2.47233221]
[1725966708984,1.4993798,2354.8,2354.5,2.4686]
[1725966710120,3.0,2354.9,2354.5,2.4686]
[1725966710314,4.78099122,2355.0,2354.5,2.4686]
[1725966710945,5.63167775,2355.0,2354.5,2.4686]
[1725966711221,3.28037102,2354.9,2354.5,2.4686]
[1725966712254,1.4993798,2354.9,2354.5,2.4686]
[1725966712457,4.4993798,2354.9,2354.5,2.4686]
[1725966712803,6.28037102,2354.9,2354.5,2.4686]
[1725966713295,4.4993798,2354.9,2354.5,2.4686]
[1725966713589,6.28037102,2354.9,2354.5,2.4686]
[1725966715272,7.21618167,2354.9,2354.5,2.4686]
[1725966720422,6.28037102,2354.9,2354.5,2.4686]
[1725966720637,4.78099122,2354.9,2354.5,2.4686]
[1725966720794,1.78099122,2355.1,2354.5,2.4686]
[1725966720998,1.78099122,2355.1,2354.7,2.2883]
[1725966721189,3.28037102,2355.1,2354.7,2.2883]
[1725966721988,1.4993798,2354.9,2354.7,2.2883]
[1725966725127,1.4993798,2354.9,2354.3,2.2695]
[1725966725301,1.4993798,2354.9,2354.4,2.2695]
[1725966731476,1.78099122,2355.0,2354.4,2.2695]
[1725966731690,3.0,2355.0,2354.4,2.2695]
[1725966732202,4.78099122,2355.1,2354.4,2.2695]
[1725966732487,1.4993798,2355.0,2354.5,2.3836]
[1725966732700,8.56277102,2355.0,2354.5,2.3836]
[1725966732996,10.79025207,2355.0,2354.5,2.3836]
[1725966733289,1.78099122,2354.9,2354.5,2.3836]
[1725966733464,1.07902521,2354.8,2354.5,2.3836]
[1725966733667,1.78099122,2354.9,2354.5,2.3836]
[1725966733891,4.78099122,2355.0,2354.5,2.3836]
[1725966734046,1.78099122,2355.1,2354.7,2.3094]
[1725966734252,1.78099122,2355.3,2354.9,2.3094]
[1725966734491,2.85,2355.4,2354.8,0.63492361]
[1725966734492,2.85,2355.4,2355.0,2.60383236]
[1725966734800,2.85,2355.4,2355.0,2.3094]
[1725966735157,2.85,2355.4,2354.6,11.00052354]
[1725966735158,1.4993798,2355.2,2354.7,2.4641]
[1725966735362,1.4993798,2354.9,2354.7,2.4641]
[1725966737696,1.4993798,2354.9,2354.5,2.3326]
[1725966739394,3.28037102,2354.9,2354.5,2.3326]
[1725966740564,1.78099122,2355.0,2354.5,2.3326]
[1725966740769,3.28037102,2355.0,2354.5,2.3326]
[1725966740979,3.28037102,2355.0,2354.5,2.71306677]
[1725966741866,1.78099122,2354.9,2354.5,2.71306677]
[1725966742070,3.28037102,2355.0,2354.5,2.3326]
[1725966744669,1.4993798,2354.6,2354.3,2.3326]
[1725966745029,3.28037102,2354.8,2354.3,2.3326]
[1725966745470,3.28037102,2354.9,2354.3,2.3326]
[1725966745669,3.28037102,2354.9,2354.5,2.3389]
[1725966746673,1.4993798,2354.9,2354.5,2.3389]
[1725966746975,6.28037102,2354.9,2354.5,2.3389]
[1725966748300,7.13140626,2354.9,2354.5,2.3389]
[1725966748818,1.4993798,2354.7,2354.5,2.3389]
[1725966750555,5.63202646,2354.9,2354.2,2.4017]
[1725966750713,1.4993798,2354.8,2354.3,1.64748413]
[1725966750913,1.4993798,2354.8,2354.4,3.06637565]
[1725966751232,3.28037102,2354.8,2354.4,2.70833757]
[1725966751442,1.4993798,2354.8,2354.4,2.4017]
[1725966751733,3.28037102,2354.8,2354.4,2.4017]
[1725966753245,4.36653401,2354.8,2354.4,2.4017]
[1725966753454,1.78099122,2354.7,2354.2,2.451]
[1725966753637,1.4993798,2354.6,2354.3,0.664756]
[1725966753950,1.4993798,2354.6,2354.2,2.451]
[1725966754106,1.4993798,2354.6,2354.3,0.66475605]
[1725966754302,1.4993798,2354.6,2354.2,2.451]
[1725966757353,1.4993798,2354.6,2354.2,2.78511709]
[1725966759363,1.4993798,2354.6,2354.2,2.451]
[1725966760964,1.4993798,2354.6,2354.1,1.47421833]
[1725966761256,1.4993798,2354.6,2354.0,2.4809]
[1725966761461,1.4993798,2354.6,2354.1,2.4571495]
[1725966761631,2.29470622,2354.6,2354.0,3.37107089]
[1725966761823,2.29470622,2354.6,2354.1,2.45707731]
[1725966762028,2.29470622,2354.6,2354.1,1.47414184]
[1725966762226,2.29470622,2354.6,2354.0,3.37107089]
[1725966762434,1.4993798,2354.6,2354.1,2.45691293]
[1725966762633,1.4993798,2354.6,2354.0,3.84170361]
[1725966762920,1.4993798,2354.6,2354.1,2.45688675]
[1725966763124,1.4993798,2354.6,2354.0,2.95153272]
[1725966763367,1.4993798,2354.6,2354.1,0.98279413]
[1725966763658,1.4993798,2354.6,2354.0,2.95153272]
[1725966763965,1.4993798,2354.6,2354.1,0.98278939]
[1725966764139,2.29469428,2354.6,2354.0,2.4809]
[1725966764342,2.29469428,2354.6,2354.1,0.98279638]
[1725966764538,2.29469428,2354.6,2354.0,2.4809]
[1725966764735,2.29469428,2354.6,2354.1,0.98277056]
[1725966764934,2.29469428,2354.6,2354.0,2.4809]
[1725966765162,1.4993798,2354.6,2354.0,2.95153272]
[1725966765362,1.4993798,2354.6,2354.0,4.42568336]
[1725966765610,1.4993798,2354.6,2354.0,2.95153272]
[1725966766180,1.4993798,2354.6,2354.1,0.98272414]
[1725966766389,1.4993798,2354.6,2354.0,2.95153272]
[1725966766601,1.4993798,2354.6,2354.1,0.98271074]
[1725966766779,4.22369122,2354.7,2354.0,2.95153272]
[1725966766780,1.4993798,2354.4,2354.0,2.95153272]
[1725966767157,3.9527798,2354.4,2354.0,2.95153272]
[1725966767766,3.9527798,2354.4,2354.0,0.47063272]
[1725966767973,3.9527798,2354.4,2353.8,3.19127089]
[1725966768196,3.9527798,2354.4,2353.9,3.00710675]
[1725966768405,3.9527798,2354.4,2354.0,0.9828427]
[1725966768560,3.9527798,2354.4,2353.9,0.55]
[1725966768895,3.9527798,2354.4,2354.0,0.98274395]
[1725966769060,3.9527798,2354.4,2353.9,1.05765272]
[1725966773099,1.4993798,2354.4,2353.9,1.05765272]
[1725966777499,3.0,2354.5,2354.0,2.3167]
[1725966777744,3.7873798,2354.6,2354.1,0.43088411]
[1725966777948,1.4993798,2354.6,2354.1,0.43088411]
[1725966778231,1.4993798,2354.6,2354.2,2.8019]
[1725966778998,1.4993798,2354.6,2354.0,2.2519]
[1725966778999,2.4912,2354.5,2354.0,2.2519]
[1725966779220,1.4993798,2354.4,2354.0,2.2519]
[1725966779633,1.4993798,2354.4,2353.9,1.97932362]
[1725966779832,1.4993798,2354.4,2353.9,0.50765272]
[1725966780598,1.4993798,2354.0,2353.7,1.4716709]
[1725966780841,1.4993798,2354.0,2353.7,0.98166855]
[1725966781144,1.4993798,2354.0,2353.6,2.4394]
[1725966781922,3.9242798,2354.0,2353.4,3.88707055]
[1725966782242,3.9242798,2354.0,2353.4,4.25685033]
[1725966782427,3.9242798,2354.0,2353.4,2.78447978]
[1725966782898,3.9242798,2354.0,2353.4,4.25685033]
[1725966783240,3.9242798,2354.0,2353.4,2.78447978]
[1725966784145,1.4993798,2353.8,2353.4,2.4147]
[1725966784376,1.4993798,2353.8,2353.2,2.4147]
[1725966784508,1.4993798,2353.8,2353.3,0.55]
[1725966784710,1.4993798,2353.8,2353.3,0.99370705]
[1725966784954,2.3107,2353.7,2353.3,0.55]
[1725966786045,1.4993798,2353.6,2353.3,0.55]
[1725966786222,1.4993798,2353.6,2353.0,2.2543]
[1725966786417,1.4993798,2353.6,2353.0,2.71589599]
[1725966786650,1.4993798,2353.6,2353.0,2.2543]
[1725966787660,1.4993798,2353.6,2353.1,0.55]
[1725966792875,2.3107,2353.7,2353.1,0.55]
[1725966793077,3.8100798,2353.7,2353.1,0.55]
[1725966793373,3.8100798,2353.7,2353.1,0.83892862]
[1725966794471,3.8100798,2353.7,2353.1,0.55]
[1725966796178,2.3107,2353.7,2353.1,0.63498614]
[1725966796343,2.3107,2353.7,2353.1,0.55]
[1725966800493,2.3107,2353.7,2353.1,0.63498155]
[1725966800700,2.3107,2353.7,2353.1,0.92390971]
[1725966801097,2.3107,2353.7,2353.1,0.83892816]
[1725966802768,1.4993798,2353.6,2353.1,0.83892816]
[1725966802954,2.347,2353.5,2353.1,0.55]
[1725966803162,2.347,2353.5,2352.9,0.55]
[1725966803362,2.347,2353.5,2353.0,0.28267]
[1725966803587,2.347,2353.5,2353.1,0.55]
[1725966808414,2.3198,2353.8,2353.2,2.56318623]
[1725966808710,3.00171798,2353.8,2353.3,0.55]
[1725966809519,1.4993798,2353.7,2353.3,0.55]
[1725966809821,2.2789,2353.6,2352.8,2.2535]
[1725966810008,2.2789,2353.6,2352.9,1.07535]
[1725966810381,2.2789,2353.2,2352.7,3.0]
[1725966810605,2.2789,2353.2,2352.6,2.2535]
[1725966812116,2.2789,2353.2,2352.7,0.55]
[1725966814595,2.2789,2353.2,2352.5,3.55]
[1725966814917,2.2789,2353.2,2352.6,0.64806315]
[1725966815117,2.2789,2353.2,2352.7,0.55]
[1725966816627,2.2789,2353.2,2352.6,0.55]
[1725966821387,2.2789,2353.2,2352.5,0.55]
[1725966821587,2.2789,2353.2,2352.5,2.60335166]
[1725966822226,2.2789,2353.2,2352.5,1.93822495]
[1725966822439,2.2789,2353.2,2352.5,2.60335166]
[1725966823228,2.2789,2353.2,2352.6,0.66512671]
[1725966823436,2.2789,2353.2,2352.7,0.89533497]
[1725966823848,2.2789,2353.2,2352.7,0.81033517]
[1725966824052,2.2789,2353.2,2352.7,0.89533492]
[1725966824214,2.2789,2353.2,2352.7,1.56046163]
[1725966824552,2.2789,2353.2,2352.7,0.89533492]
[1725966824931,2.2789,2353.2,2352.7,0.81033517]
[1725966825581,2.2789,2353.2,2352.8,0.66511519]
[1725966825711,2.2789,2353.2,2352.7,3.07583517]
[1725966825911,2.2789,2353.2,2352.8,0.66511507]
[1725966826156,2.2789,2353.2,2352.7,0.55]
[1725966826315,2.2789,2353.2,2352.8,0.66511509]
[1725966826520,2.2789,2353.2,2352.6,1.43466729]
[1725966826771,2.2789,2353.2,2352.7,0.66515757]
[1725966826917,1.4993798,2353.1,2352.6,0.55]
[1725966827118,2.2909,2353.0,2352.7,0.66514915]
[1725966827320,2.2909,2353.0,2352.6,0.97979312]
[1725966827515,2.2909,2353.0,2352.7,0.66514916]
[1725966827757,2.2909,2353.0,2352.6,0.97979312]
[1725966828087,2.2909,2353.0,2352.7,0.66514982]
[1725966828231,2.2909,2353.0,2352.8,0.66514982]
[1725966828416,2.2909,2353.0,2352.6,0.97979312]
[1725966828757,2.2909,2353.0,2352.7,1.04900807]
[1725966828959,2.2909,2353.0,2352.7,0.3838483]
[1725966829969,2.2909,2353.0,2352.8,0.66516167]
[1725966830144,2.2909,2353.0,2352.6,0.55]
[1725966830452,2.2909,2353.0,2352.7,0.66513095]
[1725966830656,2.2909,2353.0,2352.8,0.66513095]
[1725966830812,2.2909,2353.0,2352.9,0.66513095]
[1725966831015,2.2909,2353.0,2352.6,0.55]